lending/lending_fUSD_20250210
["ID","MTS","AMOUNT","RATE_DAILY","PERIOD"]
[352675862,1739229031902,-150.0,9.214e-05,2]
[352675863,1739229031911,-245.42,9.646e-05,2]
[352675864,1739229031920,-245.42,9.648e-05,2]
[352675865,1739229031929,-245.42,9.651e-05,2]
[352675866,1739229031939,-245.42,9.653e-05,2]
[352675867,1739229031948,-245.42,9.656e-05,2]
[352675868,1739229031957,-245.42,9.658e-05,2]
[352675869,1739229031966,-156.55,9.661e-05,2]
[352675870,1739229031975,-245.42,9.661e-05,2]
[352675871,1739229031985,-245.42,9.663e-05,2]
[352675872,1739229031994,-245.42,9.666e-05,2]
[352675873,1739229032003,-245.42,9.669e-05,2]
[352675874,1739229032013,-245.42,9.671e-05,2]
[352675875,1739229032022,-245.42,9.674e-05,2]
[352675876,1739229032030,-245.42,9.676e-05,2]
[352675877,1739229032039,-245.42,9.679e-05,2]
[352675878,1739229032048,-245.42,9.681e-05,2]
[352675879,1739229032058,-245.42,9.684e-05,2]
[352675880,1739229032067,-245.42,9.686e-05,2]
[352675881,1739229032076,-245.42,9.689e-05,2]
[352675882,1739229032085,-245.42,9.691e-05,2]
[352675883,1739229032094,-150.0,9.694e-05,2]
[352675884,1739229032103,-245.42,9.694e-05,2]
[352675885,1739229032112,-1000.0,9.77e-05,2]
[352675886,1739229032122,-372.1,9.846e-05,2]
[352675887,1739229032132,-150.0,9.87e-05,2]
[352675888,1739229032141,-1500.0,9.881e-05,2]
[352675889,1739229032150,-777.2,9.928e-05,2]
[352675890,1739229032159,-164.97,9.947e-05,2]
[352675891,1739229032168,-727.87,0.00010005,2]
[352675892,1739229032177,-170.44,0.00010007,2]
[352675893,1739229032186,-2502.68,0.00010059,2]
[352675894,1739229032195,-313.67,0.00010077,2]
[352675895,1739229032205,-420.0,0.00010105,2]
[352675896,1739229032214,-298.16,0.00010137,2]
[352675897,1739229032223,-921.42,0.0001043,2]
[352675898,1739229032234,-255.0,0.00010663,2]
[352675899,1739229032243,-1380.89551131,0.00010687,2]
[352675900,1739229032255,-16691.65277803,0.00010687,2]
[352675901,1739229032264,-1110.322,0.00010687,2]
[352675902,1739229032273,-1000.0,0.00010699,2]
[352675903,1739229032283,-1000.0,0.000107,2]
[352675904,1739229032292,-1000.0,0.000107,2]
[352675905,1739229032302,-1569.0,0.000107,2]
[352675906,1739229032311,-500.0,0.00010799,2]
[352675907,1739229032319,-500.0,0.00010799,2]
[352675908,1739229032329,-500.0,0.00010799,2]
[352675909,1739229032339,-500.0,0.00010799,2]
[352675910,1739229032348,-500.0,0.00010799,2]
[352675911,1739229032358,-500.0,0.00010799,2]
[352675912,1739229032367,-500.0,0.00010799,2]
[352675913,1739229032377,-289.44844633,0.00010799,2]
[352675914,1739229032389,-500.0,0.00010799,2]
[352675915,1739229032399,-500.0,0.00010799,2]
[352675916,1739229032408,-500.0,0.00010799,2]
[352675917,1739229032418,-500.0,0.00010799,2]
[352675918,1739229032427,-500.0,0.00010799,2]
[352675919,1739229032437,-500.0,0.00010799,2]
[352675920,1739229032446,-500.0,0.00010799,2]
[352675921,1739229032456,-500.0,0.00010799,2]
[352675922,1739229032466,-200.0,0.00010827,2]
[352675923,1739229032476,-2022.4518637,0.00010829,2]
[352675924,1739229032486,-8512.41423291,0.00010833,2]
[352675925,1739229032495,-2022.4518637,0.00010835,2]
[352675926,1739229032504,-1040.12484513,0.00010835,2]
[352675927,1739229032514,-200.0,0.00010835,2]
[352675928,1739229032523,-59558.53452833,0.00010836,2]
[352675929,1739229032646,-2072.32084368,0.00010836,2]
[352675930,1739229032656,-1040.12484513,0.00010836,2]
[352675931,1739229032665,-61630.85537201,0.00010844,2]
[352675932,1739229032674,-8512.41423291,0.00010847,2]
[352675933,1739229032683,-3589.41194713,0.00010849,2]
[352675934,1739229032693,-2022.4518637,0.0001085,2]
[352675935,1739229032702,-1040.12484513,0.00010852,2]
[352675936,1739229032711,-61630.85537201,0.00010856,2]
[352675937,1739229032720,-200.0,0.00010857,2]
[352675938,1739229032729,-8512.41423291,0.00010868,2]
[352675939,1739229032739,-3589.41194713,0.00010874,2]
[352675940,1739229032748,-3589.41194713,0.00010876,2]
[352675941,1739229032757,-200.0,0.00010878,2]
[352675942,1739229032765,-151.4058087,0.00010878,2]
[352675943,1739229032774,-319.69681166,0.00010878,2]
[352675944,1739229032784,-8512.41423291,0.00010883,2]
[352675945,1739229032794,-3589.41194713,0.00010893,2]
[352675946,1739229032803,-1040.12484513,0.00010894,2]
[352675947,1739229032812,-61630.85537201,0.00010895,2]
[352675948,1739229032822,-2022.4518637,0.00010895,2]
[352675949,1739229032831,-648.14789168,0.000109,2]
[352675950,1739229032841,-153.95575824,0.000109,2]
[352675951,1739229032850,-500.0,0.00010916,2]
[352675952,1739229032859,-1059.0,0.00010926,2]
[352675953,1739229032868,-4701.65084817,0.00010931,2]
[352675954,1739229032877,-500.0,0.00010958,2]
[352675955,1739229032886,-500.0,0.00010958,2]
[352675956,1739229032896,-500.0,0.00010958,2]
[352675957,1739229032905,-500.0,0.00010958,2]
[352675958,1739229032914,-869.61,0.00010958,2]
[352675959,1739229032923,-500.0,0.00010958,2]
[352675960,1739229032933,-500.0,0.00010958,2]
[352675961,1739229032942,-500.0,0.00010958,2]
[352675962,1739229032951,-500.0,0.00010958,2]
[352675963,1739229032960,-135.0851078,0.00010958,2]
[352675964,1739229032972,-364.9148922,0.00010958,2]
[352675965,1739229032982,-264.0315517,0.00010958,2]
[352675966,1739229032993,-340.8684483,0.00010958,2]
[352675967,1739229033003,-464.47746991,0.00010958,2]
[352675968,1739229033019,-35.52253009,0.00010958,2]
[352675969,1739229033029,-1037.25,0.00010958,2]
[352675970,1739229033038,-500.0,0.00010958,2]
[352675971,1739229033047,-779.96,0.00010958,2]
[352675972,1739229033057,-500.0,0.00010958,2]
[352675973,1739229033066,-1074.25,0.00010958,2]
[352675974,1739229033075,-454.91168086,0.00010958,2]
[352675975,1739229033126,-45.08831914,0.00010958,2]
[352675976,1739229033135,-538.55,0.00010958,2]
[352675977,1739229033145,-753.36168086,0.00010958,2]
[352675978,1739229033156,-136.15831914,0.00010958,2]
[352675979,1739229033166,-500.0,0.00010958,2]
[352675980,1739229033175,-500.0,0.00010958,2]
[352675981,1739229033184,-500.0,0.00010958,2]
[352675982,1739229033194,-500.0,0.00010958,2]
[352675983,1739229033203,-500.0,0.00010958,2]
[352675984,1739229033212,-500.0,0.00010958,2]
[352675985,1739229033221,-687.88,0.00010958,2]
[352675986,1739229033231,-500.0,0.00010958,2]
[352675987,1739229033241,-500.0,0.00010958,2]
[352675988,1739229033250,-107.5816046,0.00010958,2]
[352675989,1739229033262,-392.4183954,0.00010958,2]
[352675990,1739229033272,-500.0,0.00010958,2]
[352675991,1739229033282,-797.66,0.00010958,2]
[352675992,1739229033291,-500.0,0.00010958,2]
[352675993,1739229033301,-138.61745461,0.00010958,2]
[352675994,1739229033314,-848.17254539,0.00010958,2]
[352675995,1739229033323,-500.0,0.00010958,2]
[352675996,1739229033332,-500.0,0.00010958,2]
[352675997,1739229033342,-500.0,0.00010958,2]
[352675998,1739229033352,-576.49,0.00010958,2]
[352675999,1739229033361,-944.63,0.00010958,2]
[352676000,1739229033371,-500.0,0.00010958,2]
[352676001,1739229033382,-500.0,0.00010958,2]
[352676002,1739229033394,-927.6,0.00010958,2]
[352676003,1739229033403,-500.0,0.00010958,2]
[352676004,1739229033413,-500.0,0.00010958,2]
[352676005,1739229033644,-500.0,0.00010958,2]
[352676006,1739229033654,-500.0,0.00010958,2]
[352676007,1739229033664,-500.0,0.00010958,2]
[352676008,1739229033673,-500.0,0.00010958,2]
[352676009,1739229033683,-500.0,0.00010958,2]
[352676010,1739229033692,-500.0,0.00010958,2]
[352676011,1739229033701,-500.0,0.00010958,2]
[352676012,1739229033711,-500.0,0.00010958,2]
[352676013,1739229033720,-516.21,0.00010958,2]
[352676014,1739229033730,-664.26,0.00010958,2]
[352676015,1739229033739,-500.0,0.00010958,2]
[352676016,1739229033748,-500.0,0.00010958,2]
[352676017,1739229033758,-770.27,0.00010958,2]
[352676018,1739229033767,-679.94,0.00010958,2]
[352676019,1739229033776,-960.39,0.00010958,2]
[352676020,1739229033785,-500.0,0.00010958,2]
[352676021,1739229033794,-500.0,0.00010958,2]
[352676022,1739229033803,-500.0,0.00010958,2]
[352676023,1739229033813,-500.0,0.00010958,2]
[352676024,1739229033822,-768.69,0.00010958,2]
[352676025,1739229033831,-500.0,0.00010958,2]
[352676026,1739229033840,-927.43,0.00010958,2]
[352676027,1739229033850,-865.13,0.00010958,2]
[352676028,1739229033859,-500.0,0.00010958,2]
[352676029,1739229033868,-500.0,0.00010958,2]
[352676030,1739229033877,-966.64,0.00010958,2]
[352676031,1739229033887,-500.0,0.00010958,2]
[352676032,1739229033896,-500.0,0.00010958,2]
[352676033,1739229033906,-500.0,0.00010958,2]
[352676034,1739229033915,-1073.56,0.00010958,2]
[352676035,1739229033925,-500.0,0.00010958,2]
[352676036,1739229033935,-500.0,0.00010958,2]
[352676037,1739229033945,-1251.96,0.00010958,2]
[352676038,1739229033954,-500.0,0.00010958,2]
[352676039,1739229033963,-500.0,0.00010958,2]
[352676040,1739229033972,-845.34,0.00010958,2]
[352676041,1739229033981,-500.0,0.00010958,2]
[352676042,1739229033991,-500.0,0.00010958,2]
[352676043,1739229034000,-501.63,0.00010958,2]
[352676044,1739229034010,-229.57367,0.00010958,2]
[352676045,1739229034019,-500.0,0.00010958,2]
[352676046,1739229034028,-872.68,0.00010958,2]
[352676047,1739229034037,-500.0,0.00010958,2]
[352676048,1739229034046,-500.0,0.00010958,2]
[352676049,1739229034056,-953.27,0.00010958,2]
[352676050,1739229034065,-1055.06,0.00010958,2]
[352676051,1739229034074,-500.0,0.00010958,2]
[352676052,1739229034083,-500.0,0.00010958,2]
[352676053,1739229034092,-840.97,0.00010958,2]
[352676054,1739229034102,-500.0,0.00010958,2]
[352676055,1739229034111,-557.95,0.00010958,2]
[352676056,1739229034120,-500.0,0.00010958,2]
[352676057,1739229034129,-973.25,0.00010958,2]
[352676058,1739229034138,-762.06,0.00010958,2]
[352676059,1739229034147,-517.08,0.00010958,2]
[352676060,1739229034156,-500.0,0.00010958,2]
[352676061,1739229034165,-500.0,0.00010958,2]
[352676062,1739229034175,-813.5,0.00010958,2]
[352676063,1739229034184,-500.0,0.00010958,2]
[352676064,1739229034193,-760.67,0.00010958,2]
[352676065,1739229034203,-894.15,0.00010958,2]
[352676066,1739229034212,-801.42,0.00010958,2]
[352676067,1739229034221,-500.0,0.00010958,2]
[352676068,1739229034232,-500.0,0.00010958,2]
[352676069,1739229034241,-500.0,0.00010958,2]
[352676070,1739229034249,-500.0,0.00010958,2]
[352676071,1739229034259,-1511.0,0.00010958,2]
[352676072,1739229034268,-500.0,0.00010958,2]
[352676073,1739229034277,-1091.52,0.00010958,2]
[352676074,1739229034287,-362.57027335,0.00010958,2]
[352676075,1739229034296,-982.5,0.00010958,2]
[352676076,1739229034305,-500.0,0.00010958,2]
[352676077,1739229034315,-868.34,0.00010958,2]
[352676078,1739229034324,-570.91,0.00010958,2]
[352676079,1739229034333,-500.0,0.00010958,2]
[352676080,1739229034343,-648.98,0.00010958,2]
[352676081,1739229034352,-500.0,0.00010958,2]
[352676082,1739229034361,-500.0,0.00010958,2]
[352676083,1739229034370,-261.91113061,0.00010958,2]
[352676084,1739229034381,-1310.3,0.00010958,2]
[352676085,1739229034391,-1179.58,0.00010958,2]
[352676086,1739229034401,-500.0,0.00010958,2]
[352676087,1739229034410,-1032.375,0.00010959,2]
[352676088,1739229034421,-150.0,0.00010959,2]
[352676089,1739229034430,-2082.4,0.00010959,2]
[352676090,1739229034440,-315.41,0.00010959,2]
[352676091,1739229034449,-1075.4,0.00010976,2]
[352676092,1739229034460,-1020.63,0.00010976,2]
[352676093,1739229034469,-972.96,0.00010976,2]
[352676094,1739229034479,-991.2,0.00010976,2]
[352676095,1739229034489,-1730.82,0.00010976,2]
[352676096,1739229034499,-1350.97,0.00010976,2]
[352676097,1739229034510,-500.0,0.00010976,2]
[352676098,1739229034520,-1198.92,0.00010976,2]
[352676099,1739229034529,-1369.44,0.00010976,2]
[352676100,1739229034538,-961.84,0.00010976,2]
[352676101,1739229034547,-1089.94,0.00010976,2]
[352676102,1739229034556,-1353.7,0.00010976,2]
[352676103,1739229034565,-2962.5,0.00010976,2]
[352676104,1739229034575,-501.68629352,0.00010976,2]
[352676105,1739229034584,-2308.06,0.00010976,2]
[352676106,1739229034593,-1116.65,0.00010976,2]
[352676107,1739229034602,-1076.69,0.00010976,2]
[352676108,1739229034611,-500.0,0.00010976,2]
[352676109,1739229034621,-1043.24,0.00010976,2]
[352676110,1739229034630,-2782.21,0.00010976,2]
[352676111,1739229034639,-526.7,0.00010976,2]
[352676112,1739229034648,-716.89,0.00010976,2]
[352676113,1739229034657,-595.31,0.00010976,2]
[352676114,1739229034667,-1586.68,0.00010976,2]
[352676115,1739229034677,-1080.84,0.00010976,2]
[352676116,1739229034688,-155.350773,0.00010976,2]
[352676117,1739229034697,-872.32,0.00010976,2]
[352676118,1739229034707,-500.0,0.00010977,2]
[352676119,1739229034716,-500.0,0.00010977,2]
[352676120,1739229034725,-500.0,0.00010977,2]
[352676121,1739229034735,-500.0,0.00010977,2]
[352676122,1739229034745,-500.0,0.00010977,2]
[352676123,1739229034754,-500.0,0.00010977,2]
[352676124,1739229034763,-642.42,0.00010977,2]
[352676125,1739229034772,-500.0,0.00010977,2]
[352676126,1739229034781,-500.0,0.00010977,2]
[352676127,1739229034791,-500.0,0.00010977,2]
[352676128,1739229034800,-500.0,0.00010977,2]
[352676129,1739229034809,-500.0,0.00010977,2]
[352676130,1739229034818,-500.0,0.00010977,2]
[352676131,1739229034827,-500.0,0.00010977,2]
[352676132,1739229034836,-500.0,0.00010977,2]
[352676133,1739229034846,-500.0,0.00010977,2]
[352676134,1739229034855,-500.0,0.00010977,2]
[352676135,1739229034864,-500.0,0.00010977,2]
[352676136,1739229034874,-500.0,0.00010977,2]
[352676137,1739229034883,-500.0,0.00010977,2]
[352676138,1739229034893,-500.0,0.00010977,2]
[352676139,1739229034902,-500.0,0.00010977,2]
[352676140,1739229034911,-500.0,0.00010977,2]
[352676141,1739229034920,-500.0,0.00010977,2]
[352676142,1739229034930,-500.0,0.00010977,2]
[352676143,1739229034939,-500.0,0.00010977,2]
[352676144,1739229034948,-500.0,0.00010977,2]
[352676145,1739229034958,-500.0,0.00010977,2]
[352676146,1739229034967,-612.74894247,0.00010977,2]
[352676147,1739229034976,-500.0,0.00010977,2]
[352676148,1739229034987,-500.0,0.00010977,2]
[352676149,1739229034997,-500.0,0.00010977,2]
[352676150,1739229035006,-500.0,0.00010977,2]
[352676151,1739229035015,-500.0,0.00010977,2]
[352676152,1739229035024,-500.0,0.00010977,2]
[352676153,1739229035033,-500.0,0.00010977,2]
[352676154,1739229035043,-500.0,0.00010977,2]
[352676155,1739229035053,-500.0,0.00010977,2]
[352676156,1739229035062,-500.0,0.00010977,2]
[352676157,1739229035071,-500.0,0.00010977,2]
[352676158,1739229035080,-500.0,0.00010977,2]
[352676159,1739229035089,-500.0,0.00010977,2]
[352676160,1739229035099,-500.0,0.00010977,2]
[352676161,1739229035108,-561.1,0.00010977,2]
[352676162,1739229035117,-500.0,0.00010977,2]
[352676163,1739229035126,-500.0,0.00010977,2]
[352676164,1739229035136,-500.0,0.00010977,2]
[352676165,1739229035145,-500.0,0.00010977,2]
[352676166,1739229035154,-500.0,0.00010977,2]
[352676167,1739229035163,-500.0,0.00010977,2]
[352676168,1739229035172,-500.0,0.00010977,2]
[352676169,1739229035181,-500.0,0.00010977,2]
[352676170,1739229035190,-516.73572811,0.00010977,2]
[352676171,1739229035200,-500.0,0.00010977,2]
[352676172,1739229035209,-353.88485043,0.00010977,2]
[352676173,1739229035218,-500.0,0.00010977,2]
[352676174,1739229035227,-500.0,0.00010977,2]
[352676175,1739229035237,-481.29166569,0.00010977,2]
[352676176,1739229035246,-500.0,0.00010977,2]
[352676177,1739229035256,-500.0,0.00010977,2]
[352676178,1739229035265,-500.0,0.00010977,2]
[352676179,1739229035275,-500.0,0.00010977,2]
[352676180,1739229035284,-500.0,0.00010977,2]
[352676181,1739229035293,-500.0,0.00010977,2]
[352676182,1739229035303,-500.0,0.00010977,2]
[352676183,1739229035312,-500.0,0.00010977,2]
[352676184,1739229035321,-500.0,0.00010977,2]
[352676185,1739229035330,-500.0,0.00010977,2]
[352676186,1739229035339,-500.0,0.00010977,2]
[352676187,1739229035348,-500.0,0.00010977,2]
[352676188,1739229035356,-500.0,0.00010977,2]
[352676189,1739229035366,-520.25143709,0.00010977,2]
[352676190,1739229035375,-520.45117914,0.00010977,2]
[352676191,1739229035387,-500.0,0.00010977,2]
[352676192,1739229035397,-500.0,0.00010977,2]
[352676193,1739229035406,-500.0,0.00010977,2]
[352676194,1739229035414,-500.0,0.00010977,2]
[352676195,1739229035425,-500.0,0.00010977,2]
[352676196,1739229035434,-500.0,0.00010977,2]
[352676197,1739229035443,-500.0,0.00010977,2]
[352676198,1739229035452,-500.0,0.00010977,2]
[352676199,1739229035463,-500.0,0.00010977,2]
[352676200,1739229035471,-500.0,0.00010977,2]
[352676201,1739229035480,-500.0,0.00010977,2]
[352676202,1739229035490,-500.0,0.00010977,2]
[352676203,1739229035499,-505.86375064,0.00010977,2]
[352676204,1739229035508,-500.0,0.00010977,2]
[352676205,1739229035517,-500.0,0.00010977,2]
[352676206,1739229035526,-500.0,0.00010977,2]
[352676207,1739229035535,-519.96972504,0.00010977,2]
[352676208,1739229035544,-500.0,0.00010977,2]
[352676209,1739229035553,-500.0,0.00010977,2]
[352676210,1739229035562,-500.0,0.00010977,2]
[352676211,1739229035571,-500.0,0.00010977,2]
[352676212,1739229035580,-500.0,0.00010977,2]
[352676213,1739229035589,-500.0,0.00010977,2]
[352676214,1739229035599,-500.0,0.00010977,2]
[352676215,1739229035607,-500.0,0.00010977,2]
[352676216,1739229035616,-500.0,0.00010977,2]
[352676217,1739229035626,-500.0,0.00010977,2]
[352676218,1739229035635,-500.0,0.00010977,2]
[352676219,1739229035644,-500.0,0.00010977,2]
[352676220,1739229035653,-500.0,0.00010977,2]
[352676221,1739229035662,-500.0,0.00010977,2]
[352676222,1739229035671,-500.0,0.00010977,2]
[352676223,1739229035681,-500.0,0.00010977,2]
[352676224,1739229035690,-500.0,0.00010977,2]
[352676225,1739229035700,-500.0,0.00010977,2]
[352676226,1739229035709,-718.373625,0.00010977,2]
[352676227,1739229035718,-598.26,0.00010977,2]
[352676228,1739229035727,-500.0,0.00010977,2]
[352676229,1739229035737,-500.0,0.00010977,2]
[352676230,1739229035746,-500.0,0.00010977,2]
[352676231,1739229035755,-500.0,0.00010977,2]
[352676232,1739229035764,-500.0,0.00010977,2]
[352676233,1739229035773,-500.0,0.00010977,2]
[352676234,1739229035782,-500.0,0.00010977,2]
[352676235,1739229035792,-733.871327,0.00010977,2]
[352676236,1739229035801,-500.0,0.00010977,2]
[352676237,1739229035810,-500.0,0.00010977,2]
[352676238,1739229035819,-500.0,0.00010977,2]
[352676239,1739229035828,-500.0,0.00010977,2]
[352676240,1739229035837,-503.70152521,0.00010977,2]
[352676241,1739229035847,-500.0,0.00010977,2]
[352676242,1739229035856,-500.0,0.00010977,2]
[352676243,1739229035865,-500.0,0.00010977,2]
[352676244,1739229035874,-500.0,0.00010977,2]
[352676245,1739229035883,-500.0,0.00010977,2]
[352676246,1739229035892,-500.0,0.00010977,2]
[352676247,1739229035901,-500.0,0.00010977,2]
[352676248,1739229035910,-500.20739599,0.00010977,2]
[352676249,1739229035919,-500.0,0.00010977,2]
[352676250,1739229035928,-500.55023922,0.00010977,2]
[352676251,1739229035937,-500.0,0.00010977,2]
[352676252,1739229035946,-500.0,0.00010977,2]
[352676253,1739229035955,-500.0,0.00010977,2]
[352676254,1739229035964,-569.76,0.00010977,2]
[352676255,1739229035974,-570.21107128,0.00010977,2]
[352676256,1739229035984,-500.0,0.00010977,2]
[352676257,1739229035993,-500.0,0.00010977,2]
[352676258,1739229036002,-500.0,0.00010977,2]
[352676259,1739229036011,-500.0,0.00010977,2]
[352676260,1739229036020,-453.95308851,0.00010977,2]
[352676261,1739229036029,-638.69776495,0.00010977,2]
[352676262,1739229036038,-500.0,0.00010977,2]
[352676263,1739229036047,-500.0,0.00010977,2]
[352676264,1739229036056,-500.0,0.00010977,2]
[352676265,1739229036065,-500.0,0.00010977,2]
[352676266,1739229036074,-500.0,0.00010977,2]
[352676267,1739229036083,-500.0,0.00010977,2]
[352676268,1739229036092,-500.0,0.00010977,2]
[352676269,1739229036101,-572.24912472,0.00010977,2]
[352676270,1739229036110,-500.0,0.00010977,2]
[352676271,1739229036119,-613.12180638,0.00010977,2]
[352676272,1739229036128,-500.0,0.00010977,2]
[352676273,1739229036137,-500.0,0.00010977,2]
[352676274,1739229036146,-500.0,0.00010977,2]
[352676275,1739229036155,-500.0,0.00010977,2]
[352676276,1739229036164,-500.0,0.00010977,2]
[352676277,1739229036173,-500.0,0.00010977,2]
[352676278,1739229036182,-500.0,0.00010977,2]
[352676279,1739229036192,-500.0,0.00010977,2]
[352676280,1739229036201,-650.88,0.00010977,2]
[352676281,1739229036210,-500.0,0.00010977,2]
[352676282,1739229036219,-500.0,0.00010977,2]
[352676283,1739229036228,-500.0,0.00010977,2]
[352676284,1739229036239,-500.0,0.00010977,2]
[352676285,1739229036248,-552.27,0.00010977,2]
[352676286,1739229036257,-500.0,0.00010977,2]
[352676287,1739229036266,-500.0,0.00010977,2]
[352676288,1739229036275,-500.0,0.00010977,2]
[352676289,1739229036285,-500.0,0.00010977,2]
[352676290,1739229036294,-500.0,0.00010977,2]
[352676291,1739229036303,-500.0,0.00010977,2]
[352676292,1739229036312,-400.0,0.00010977,2]
[352676293,1739229036322,-500.0,0.00010977,2]
[352676294,1739229036330,-500.0,0.00010977,2]
[352676295,1739229036340,-500.0,0.00010977,2]
[352676296,1739229036349,-500.0,0.00010977,2]
[352676297,1739229036357,-500.0,0.00010977,2]
[352676298,1739229036367,-500.0,0.00010977,2]
[352676299,1739229036378,-479.06361955,0.00010977,2]
[352676300,1739229036389,-500.0,0.00010977,2]
[352676301,1739229036398,-500.0,0.00010977,2]
[352676302,1739229036407,-500.0,0.00010977,2]
[352676303,1739229036417,-500.0,0.00010977,2]
[352676304,1739229036428,-500.0,0.00010977,2]
[352676305,1739229036437,-500.0,0.00010977,2]
[352676306,1739229036447,-500.0,0.00010977,2]
[352676307,1739229036456,-500.0,0.00010977,2]
[352676308,1739229036466,-500.0,0.00010977,2]
[352676309,1739229036475,-482.48496321,0.00010977,2]
[352676310,1739229036484,-500.0,0.00010977,2]
[352676311,1739229036493,-500.0,0.00010977,2]
[352676312,1739229036502,-500.0,0.00010977,2]
[352676313,1739229036511,-500.0,0.00010977,2]
[352676314,1739229036520,-207.07179726,0.00010977,2]
[352676315,1739229036529,-500.0,0.00010977,2]
[352676316,1739229036538,-500.0,0.00010977,2]
[352676317,1739229036548,-251.31049251,0.00010977,2]
[352676318,1739229036557,-500.0,0.00010977,2]
[352676319,1739229036566,-500.0,0.00010977,2]
[352676320,1739229036575,-500.0,0.00010977,2]
[352676321,1739229036584,-556.07358579,0.00010977,2]
[352676322,1739229036593,-500.0,0.00010977,2]
[352676323,1739229036602,-500.0,0.00010977,2]
[352676324,1739229036611,-500.0,0.00010977,2]
[352676325,1739229036620,-500.0,0.00010977,2]
[352676326,1739229036629,-500.0,0.00010977,2]
[352676327,1739229036639,-500.0,0.00010977,2]
[352676328,1739229036649,-500.0,0.00010977,2]
[352676329,1739229036658,-500.0,0.00010977,2]
[352676330,1739229036668,-500.0,0.00010977,2]
[352676331,1739229036677,-500.0,0.00010977,2]
[352676332,1739229036686,-500.0,0.00010977,2]
[352676333,1739229036696,-500.0,0.00010977,2]
[352676334,1739229036705,-500.0,0.00010977,2]
[352676335,1739229036714,-500.0,0.00010977,2]
[352676336,1739229036723,-500.0,0.00010977,2]
[352676337,1739229036733,-500.0,0.00010977,2]
[352676338,1739229036743,-526.77375265,0.00010977,2]
[352676339,1739229036752,-1333.94,0.00010977,2]
[352676340,1739229036762,-500.0,0.00010977,2]
[352676341,1739229036771,-500.0,0.00010977,2]
[352676342,1739229036780,-500.0,0.00010977,2]
[352676343,1739229036789,-502.04868177,0.00010977,2]
[352676344,1739229036798,-515.72010547,0.00010977,2]
[352676345,1739229036808,-1945.97,0.00010977,2]
[352676346,1739229036817,-500.0,0.00010977,2]
[352676347,1739229036826,-500.0,0.00010977,2]
[352676348,1739229036835,-2025.5,0.00010977,2]
[352676349,1739229036844,-500.0,0.00010977,2]
[352676350,1739229036853,-1010.53,0.00010977,2]
[352676351,1739229036863,-500.0,0.00010977,2]
[352676352,1739229036872,-500.0,0.00010977,2]
[352676353,1739229036881,-5959.18,0.00010977,2]
[352676354,1739229036890,-1285.57,0.00010977,2]
[352676355,1739229036899,-1513.3,0.00010977,2]
[352676356,1739229036908,-678.17,0.00010977,2]
[352676357,1739229036917,-982.59,0.00010977,2]
[352676358,1739229036927,-500.0,0.00010977,2]
[352676359,1739229036935,-724.17,0.00010977,2]
[352676360,1739229036944,-500.0,0.00010977,2]
[352676361,1739229036953,-500.0,0.00010977,2]